Cogmind - Beta 16 @@@ ROGUE MODE // 2025.12.12 @ 19:09:32 Player: Anting Result: Core destroyed Performance ------------- Evolutions (2) 1000 Regions Visited (8) 1600 Robots Destroyed (112) 560 Value Destroyed (3943) 3943 Prototype IDs (30) 600 Alien Tech Used (0) 0 Bonus (704) 704 TOTAL SCORE: 8407 Bonus ------- High Alert Combat Kills 144 Follower Combat Kills 60 Entered Garrisons 200 Aligned with FarCom 300 Cogmind --------- Core Integrity 0/550 Matter 0/300 Energy 100/100 System Corruption 24% Temperature Cool (0) Movement Core (750) Ox14 Location -8/Garrison Parts ------- > --- POWER (1) -------- (None) > --- PROPULSION (3) --- Light Treads Improved Treads > --- UTILITY (3) ------ Improved Heat Sink High-capacity Storage Unit > --- WEAPON (4) ------- Heavy Assault Rifle > --- INVENTORY (20) --- Cesium-ion Thruster Cesium-ion Thruster Cesium-ion Thruster Cesium-ion Thruster Nuclear Pulse Thruster Improved Heat Sink Matter Compressor (0) 0b10 Alert Chip Advanced Targeting Computer Reaction Control System Reaction Control System Cloaking Device Improved Core Shielding Hardened Medium Armor Plating Hacking Suite Improved Assault Rifle High-powered Shotgun Missile Launcher Missile Launcher Peak State ------------ > --- POWER ------------ Light Nuclear Core > --- PROPULSION ------- Improved Treads Improved Treads Improved Treads > --- UTILITY ---------- Improved Heat Sink High-capacity Storage Unit Weapon Cycler > --- WEAPON ----------- Heavy Assault Rifle Autogun High-powered Shotgun Rocket Launcher > --- INVENTORY -------- Light Treads Cesium-ion Thruster Cesium-ion Thruster Cesium-ion Thruster Cesium-ion Thruster Nuclear Pulse Thruster Improved Heat Sink Matter Compressor 0b10 Alert Chip Advanced Targeting Computer Reaction Control System Reaction Control System Cloaking Device Improved Core Shielding Hardened Medium Armor Plating Hacking Suite Improved Assault Rifle High-powered Shotgun Missile Launcher Missile Launcher [Rating: 32] Favorites ----------- Power Heavy Ion Engine Engine Heavy Ion Engine Power Core Light Nuclear Core Propulsion Light Treads Treads Light Treads Leg Aluminum Leg Utility High-capacity Storage Unit Device Improved Heat Sink Storage High-capacity Storage Unit Hackware Hacking Suite Protection Hardened Medium Armor Plating Weapon Shotgun Energy Gun Small Laser Energy Cannon Light EM Pulse Cannon Ballistic Gun Shotgun Launcher Rocket Launcher Build | -11 -10 -10 -9 -9 -9 -8 -8 -8 ------- Run | Yrd Mat Min Mat Min Exi Min Mat Gar Slots Evolved 4 | . . . 2 . . . 2 . Power . | . . . . . . . . . Propulsion 1 | . . . 1 . . . . . Utility 1 | . . . . . . . 1 . Weapon 2 | . . . 1 . . . 1 . Parts Attached 51 | 7 7 . 14 1 . 1 11 10 Power 8 | 2 . . 2 . . . 2 2 Engine 5 | 2 . . 1 . . . 2 . Core 3 | . . . 1 . . . . 2 Reactor . | . . . . . . . . . Propulsion 14 | 2 . . 7 . . . 1 4 Treads 12 | . . . 7 . . . 1 4 Leg 2 | 2 . . . . . . . . Wheel . | . . . . . . . . . Hover . | . . . . . . . . . Flight . | . . . . . . . . . Utility 12 | 1 4 . 1 . . 1 3 2 Device 5 | 1 . . 1 . . 1 . 2 Storage 4 | . 4 . . . . . . . Processor . | . . . . . . . . . Hackware 1 | . . . . . . . 1 . Protection 2 | . . . . . . . 2 . Artifact . | . . . . . . . . . Weapon 17 | 2 3 . 4 1 . . 5 2 Energy Gun 1 | 1 . . . . . . . . Energy Cannon 2 | . . . 1 1 . . . . Ballistic Gun 12 | 1 2 . 3 . . . 4 2 Ballistic Cannon . | . . . . . . . . . Launcher 2 | . 1 . . . . . 1 . Special Weapon . | . . . . . . . . . Impact Weapon . | . . . . . . . . . Slashing Weapon . | . . . . . . . . . Piercing Weapon . | . . . . . . . . . Special Melee Weapon . | . . . . . . . . . Unidentified Prototypes 3 | . . . 3 . . . . . Parts Lost 15 | . 1 . 1 . . . . 13 Power 4 | . 1 . 1 . . . . 2 Propulsion 5 | . . . . . . . . 5 Utility 2 | . . . . . . . . 2 Weapon 4 | . . . . . . . . 4 Highest Loss Streak 6 | . 1 . 1 . . . . 6 To Critical Strikes . | . . . . . . . . . Average Backups 17 | 2 13 19 19 20 20 20 19 16 Power . | . . . . . . . . . Propulsion 7 | 1 7 11 9 9 8 7 7 5 Utility 4 | . 1 2 3 3 3 4 6 6 Weapon 5 | . 4 6 7 8 8 8 6 4 Tool/Special . | . . . . . . . . . Unused Backups 31 | . 3 1 2 . 1 1 7 16 Power 1 | . 1 . . . . . . . Propulsion 13 | . 1 1 . . 1 1 4 5 Utility 11 | . . . 1 . . . 1 9 Weapon 6 | . 1 . 1 . . . 2 2 Tool/Special . | . . . . . . . . . Average Slot Usage (%) 97 | . 97 100 98 100 100 100 99 90 Engine 8 | . 13 14 5 11 11 11 9 2 Core 1 | . . . 4 . . . . 4 Treads 22 | . . . 32 33 33 33 27 25 Leg 6 | . 28 28 . . . . . . Device 9 | . 14 14 10 11 11 11 2 13 Storage 10 | . 14 14 11 11 11 11 9 9 Hackware 2 | . . . . . . . 6 1 Protection 3 | . . . . . . . 8 1 Ballistic Gun 30 | . 21 28 32 30 22 33 35 29 Peak Build Rating 32 | 6 10 11 19 19 20 20 30 32 Average Rating 20 | 3 8 10 17 19 19 19 28 28 On Entrance 15 | . 6 10 11 19 19 20 20 30 Avg Prop Armor Cover (%) . | . . . . . . . . . Naked Turns . | . . . . . . . . . Heaviest Build 70 | 9 49 49 58 59 59 58 69 70 Greatest Support 69 | 20 20 20 60 60 60 60 63 69 Greatest Overweight (x) 2 | . 2 2 . . . . 1 1 Average Overweight (x) . | . . 2 . . . . . . Largest Inventory Capacity 20 | 5 20 20 20 20 20 20 20 20 Average Capacity 18 | 5 15 20 20 20 20 20 20 20 Most Carried 20 | 5 19 20 20 20 20 20 20 20 Average Carried 17 | 3 13 19 19 20 20 19 19 16 Final Capacity 20 | 5 20 20 20 20 20 20 20 20 Final Carried 20 | 5 19 20 20 20 20 20 20 19 Class Distribution -------------------- 49% | Skirmisher 26% | Mutant 19% | Gunner 3% | Scavenger-Gunner Dominant Class ---------------- Mutant | -10/Materials Mutant | -10/Mines Gunner | -9/Materials Gunner | -9/Mines Gunner | -9/Exiles Skirmisher | -8/Mines Skirmisher | -8/Materials Skirmisher | -8/Garrison Resources | -11 -10 -10 -9 -9 -9 -8 -8 -8 ----------- Run | Yrd Mat Min Mat Min Exi Min Mat Gar Matter Collected 3327 | 184 497 197 884 . . 110 734 721 Remotely . | . . . . . . . . . Salvage Created 3231 | 12 535 . 1213 . . 68 682 721 Parts 224 | 3 43 . 84 1 . 5 51 37 Haulers Intercepted 12 | . 2 . 5 . . . 5 . Recyclers Shooed 3 | . 1 . 2 . . . . . Parts Field Recycled . | . . . . . . . . . Retrieved Matter . | . . . . . . . . . Parts Self-Destructed . | . . . . . . . . . Prevented . | . . . . . . . . . Parts Restored . | . . . . . . . . . Kills | -11 -10 -10 -9 -9 -9 -8 -8 -8 ------- Run | Yrd Mat Min Mat Min Exi Min Mat Gar Combat Hostiles Destroyed 75 | . 12 . 22 . . 2 15 24 Melee 2 | . . . . . . . . 2 Guns 66 | . 9 . 21 . . 2 12 22 AOE 7 | . 3 . 1 . . . 3 . Classes Destroyed 13 | 1 7 . 3 . . . . 2 Worker 3 | . 3 . . . . . . . Builder 3 | . . . 2 . . . 1 . Tunneler 4 | 1 1 . . 1 . 1 . . Hauler 12 | . 2 . 5 . . . 5 . Recycler 3 | . 1 . 2 . . . . . Operator 3 | . 1 . 2 . . . . . Watcher 9 | . 3 . 1 . . . 5 . Swarmer 27 | . 9 . 3 . . . 9 6 Grunt 32 | . 3 . 15 . . 1 3 10 Duelist 2 | . . . 1 . . 1 . . Sentry 9 | . . . 3 . . . 3 3 Specialist 1 | . . . . . . . . 1 Programmer 4 | . . . . . . . . 4 Best Kill Streak 6 | 1 3 . 5 1 . 2 4 6 Combat Bots Only 6 | . 3 . 4 . . 2 3 6 Max Kills in Single Turn 3 | 1 3 . 2 1 . 1 3 2 Gunslinging 1 | . 1 . 1 . . . 1 . Exploded 3 | . 3 . 1 . . . 2 . Melee 1 | . . . . . . . . 1 Uniques/NPCs Destroyed . | . . . . . . . . . Combat | -11 -10 -10 -9 -9 -9 -8 -8 -8 -------- Run | Yrd Mat Min Mat Min Exi Min Mat Gar Hostile Shots Fired 326 | . 42 6 63 . . 7 46 162 Missed 77 | . 12 3 14 . . 1 9 38 Hits 249 | . 30 3 49 . . 6 37 124 Melee 12 | . . . 8 . . 4 . . Projectile 237 | . 30 3 41 . . 2 37 124 Critical Strikes 17 | . . 1 3 . . 1 1 11 Part Disruptions 1 | . . . . . . . . 1 Damage Taken 3932 | . 354 41 797 . . 154 495 2091 Core 784 | . 100 . 133 . . . 144 407 Absorbed by Shields . | . . . . . . . . . Regen/Repaired (Parts) 218 | . 53 . 165 . . . . . Core Remaining (%) 75 | 100 . 60 . . . 66 . . Volleys Fired 259 | 1 72 3 63 . . 6 43 71 Largest 4 | 2 2 2 3 . . 3 4 4 Hottest 98 | 60 60 43 69 . . 69 98 98 Shots Fired 695 | 2 132 6 181 . . 18 155 201 Gun 683 | 2 130 6 181 . . 18 151 195 Cannon . | . . . . . . . . . Launcher 12 | . 2 . . . . . 4 6 Special . | . . . . . . . . . Kinetic 633 | 1 81 6 181 . . 18 151 195 Thermal 50 | 1 49 . . . . . . . Explosive 12 | . 2 . . . . . 4 6 Electromagnetic . | . . . . . . . . . Robot Hit Streak 14 | 1 7 2 14 . . 6 7 9 Robot Miss Streak 12 | . 6 2 8 . . 3 12 6 Penetration Max . | . . . . . . . . . Secondary Targets 12 | . 1 . 3 . . 1 2 5 Max Gunslinging Chain 1 | . 1 . 1 . . 1 1 1 Shots Hit Robots 397 | 1 61 4 119 . . 16 84 112 Core Hits 208 | 1 36 3 64 . . 6 49 49 Critical Kills . | . . . . . . . . . Critical Parts Destroyed 5 | . 1 . 3 . . . . 1 Critical Strikes 5 | . 1 . 3 . . . . 1 Destroy 5 | . 1 . 3 . . . . 1 Melee Attacks . | . . . . . . . . . Impact . | . . . . . . . . . Slashing . | . . . . . . . . . Piercing . | . . . . . . . . . Sneak Attacks . | . . . . . . . . . Combat Hostiles . | . . . . . . . . . Follow-up Attacks . | . . . . . . . . . Damage Inflicted 6924 | 35 919 63 1972 5 . 257 1557 2116 Guns 6202 | 23 781 57 1702 . . 239 1397 2003 Cannons . | . . . . . . . . . Explosions 487 | . 131 . 210 . . . 146 . Melee . | . . . . . . . . . Ramming 235 | 12 7 6 60 5 . 18 14 113 Kinetic 5926 | 11 517 57 1702 . . 239 1397 2003 Thermal 276 | 12 264 . . . . . . . Explosive 487 | . 131 . 210 . . . 146 . Electromagnetic . | . . . . . . . . . Impact . | . . . . . . . . . Slashing . | . . . . . . . . . Piercing . | . . . . . . . . . Highest Corruption 24 | . 2 2 . . . . 2 24 Average Corruption 3 | . 2 2 . . . . 2 7 Corruption Purged . | . . . . . . . . . Corruption Blocked . | . . . . . . . . . Effects 98 | . 21 5 . . . . 17 55 Message Errors 19 | . 4 . . . . . 3 12 Matter Fused 22 | . 4 1 . . . . 6 11 Heat Flow Errors 12 | . 6 1 . . . . 3 2 Energy Discharges 18 | . 3 2 . . . . . 13 Parts Rejected 1 | . . . . . . . . 1 Parts Fused 2 | . . . . . . . 1 1 Data Loss (minor) 11 | . 1 . . . . . 1 9 Data Loss (major) 7 | . 3 1 . . . . 1 2 Misfires 1 | . . . . . . . . 1 Alerts 3 | . . . . . . . 2 1 Weapon Failures 2 | . . . . . . . . 2 Overload Shots . | . . . . . . . . . Overflow Damage 42 | . . . . . . . . 42 Projectiles . | . . . . . . . . . Explosions 42 | . . . . . . . . 42 Melee . | . . . . . . . . . Knockbacks 2 | . . . 2 . . . . . Impact 2 | . . . 2 . . . . . Kinetic . | . . . . . . . . . Secondary . | . . . . . . . . . Self-Inflicted Damage 228 | . . . 111 . . . . 117 Shots 3 | . . . 1 . . . . 2 Rammed 30 | . . . 4 . . 2 3 21 Targets Rammed 43 | 5 2 2 4 1 . 3 3 23 Kicked 9 | 5 2 2 . . . . . . Crushed 4 | . . . . 1 . 1 . 2 Highest Temperature 318 | . 278 145 . . . . 318 188 Average Temperature 78 | . 84 49 . . . . 104 34 Received Heat Transfer 1080 | . 75 42 198 . . 18 198 549 Effects 3 | . . . . . . . 3 . Interference 3 | . . . . . . . 3 . Siege Activations . | . . . . . . . . . Martial Activations . | . . . . . . . . . Shielding Activations . | . . . . . . . . . Robots Disrupted . | . . . . . . . . . Combat Hostiles . | . . . . . . . . . Robots Corrupted . | . . . . . . . . . Combat Hostiles . | . . . . . . . . . Parts Fried . | . . . . . . . . . Impact Corruptions . | . . . . . . . . . Robots Melted . | . . . . . . . . . Combat Hostiles . | . . . . . . . . . Parts Melted 1 | . 1 . . . . . . . Heat Transferred 625 | 25 600 . . . . . . . Parts Sabotaged . | . . . . . . . . . Parts Stolen . | . . . . . . . . . Parts Stripped . | . . . . . . . . . Power Chain Reactions . | . . . . . . . . . Alert | -11 -10 -10 -9 -9 -9 -8 -8 -8 ------- Run | Yrd Mat Min Mat Min Exi Min Mat Gar Maximum Alert Level 4 | . . . 1 . . . . 4 Low Security (%) 78 | 100 100 100 70 100 . 100 100 14 Level 1 8 | . . . 29 . . . . 20 Level 2 5 | . . . . . . . . 26 Level 3 6 | . . . . . . . . 31 Level 4 1 | . . . . . . . . 6 Level 5 . | . . . . . . . . . High Security . | . . . . . . . . . Max Security . | . . . . . . . . . Peak Influence 1107 | 5 101 58 339 121 . 75 158 1107 Initial 121 | . . 9 14 121 . . 6 14 Average 168 | . 21 6 146 28 . 18 58 621 Influence Increases 3137 | 5 437 58 748 5 . 100 561 1223 Destroy 0b10 Robot/C 1540 | . 240 40 440 . . 40 300 480 Destroy 0b10 Robot/NC 185 | 5 55 . 60 5 . 5 55 . Destroy Leader 292 | . 60 10 102 . . 10 90 20 Allied During Kill 8 | . . 8 . . . . . . Successful Hack 50 | . 21 . 8 . . . 7 14 Select Force Hacks 90 | . 30 . 60 . . . . . Disable Machine 75 | . . . 15 . . . 45 15 Anti-Garrison Action 550 | . . . . . . . . 550 Destroy Structure 167 | . 16 . 33 . . . 19 99 Lose Combat Pursuer 180 | . 15 . 30 . . 45 45 45 Influence Decreases 2030 | 5 411 46 474 317 . 83 555 139 Entered New Map 252 | . . 17 24 191 . . 11 9 Time Decay 1488 | 5 401 29 440 126 . 83 404 . Lost Part 150 | . 10 . 10 . . . . 130 Purge Threat 140 | . . . . . . . 140 . Squads Dispatched 8 | . 2 . 3 . . . 3 . Investigation 3 | . 1 . 2 . . . . . Extermination . | . . . . . . . . . Reinforcement 2 | . 1 . 1 . . . . . Assault . | . . . . . . . . . Garrison 3 | . . . . . . . 3 . Intercept . | . . . . . . . . . Searches Triggered . | . . . . . . . . . Construction Impeded . | . . . . . . . . . Haulers Reinforced . | . . . . . . . . . Active Scanning Responses . | . . . . . . . . . Cargo Convoy Interrupts . | . . . . . . . . . Stealth | -11 -10 -10 -9 -9 -9 -8 -8 -8 --------- Run | Yrd Mat Min Mat Min Exi Min Mat Gar Distress Signals 5 | . 2 . 1 . . . 1 1 Communications Jammed . | . . . . . . . . . Distress Signals . | . . . . . . . . . Times Spotted 117 | . 28 2 33 . . 4 21 29 Peak Tracking Total 6 | . 4 2 5 . . 3 4 6 Tactical Retreats 11 | . 1 . 2 . . 2 3 3 Traps | -11 -10 -10 -9 -9 -9 -8 -8 -8 ------- Run | Yrd Mat Min Mat Min Exi Min Mat Gar Traps Triggered 8 | . 2 . . . . . 2 4 Indirectly . | . . . . . . . . . Trap Hack Attempts . | . . . . . . . . . Triggered . | . . . . . . . . . Disarmed . | . . . . . . . . . Reprogrammed . | . . . . . . . . . Reused . | . . . . . . . . . Traps Extracted . | . . . . . . . . . Installed . | . . . . . . . . . Triggered . | . . . . . . . . . Machines | -11 -10 -10 -9 -9 -9 -8 -8 -8 ---------- Run | Yrd Mat Min Mat Min Exi Min Mat Gar Machines Disabled 12 | . . . 1 . . . 3 8 Max in Single Turn 1 | . . . 1 . . . 1 1 Garrison Relay 5 | . . . . . . . . 5 Phase Generator 1 | . . . . . . . . 1 Machines Repaired . | . . . . . . . . . Machines Dismantled . | . . . . . . . . . Machines Sabotaged . | . . . . . . . . . Overloaded Fab Kills . | . . . . . . . . . Hacking | -11 -10 -10 -9 -9 -9 -8 -8 -8 --------- Run | Yrd Mat Min Mat Min Exi Min Mat Gar Machines Accessed 24 | . 6 . 6 . 1 . 8 3 Terminals 16 | . 4 . 3 . . . 6 3 Fabricators . | . . . . . . . . . Repair Stations 2 | . 1 . 1 . . . . . Recycling Units 3 | . 1 . 2 . . . . . Scanalyzers 1 | . . . . . . . 1 . Garrison Access 1 | . . . . . . . 1 . Total Hacks 79 | . 21 . 18 . 1 . 34 5 Successful 45 | . 9 . 13 . 1 . 21 1 Failed 33 | . 12 . 5 . . . 12 4 Catastrophic 4 | . 1 . 1 . . . . 2 Database Lockouts 1 | . . . . . . . 1 . Manual 50 | . 16 . 10 . 1 . 23 . Terminals 56 | . 17 . 8 . . . 26 5 Fabricators . | . . . . . . . . . Repair Stations 11 | . 3 . 8 . . . . . Recycling Units 3 | . 1 . 2 . . . . . Scanalyzers 7 | . . . . . . . 7 . Garrison Access 1 | . . . . . . . 1 . Terminal Hacks 8 | . . . . . 1 . 6 1 Prototype ID Bank 2 | . . . . . . . 2 . Emergency Access Points 1 | . . . . . . . . 1 Alert Level 1 | . . . . . . . 1 . Unreport Threat 1 | . . . . . . . 1 . Locate Traps 1 | . . . . . . . 1 . Zone Layout 1 | . . . . . . . 1 . Proto ID Catalog 1 | . . . . . 1 . . . Fabricator Hacks . | . . . . . . . . . Repair Station Hacks 10 | . 2 . 8 . . . . . Scan Component 5 | . 1 . 4 . . . . . Repair 5 | . 1 . 4 . . . . . Recycling Unit Hacks . | . . . . . . . . . Scanalyzer 7 | . . . . . . . 7 . Insert Component 2 | . . . . . . . 2 . Analyze 2 | . . . . . . . 2 . Retrieve Study 3 | . . . . . . . 3 . Garrison Access Hacks 1 | . . . . . . . 1 . Unlock Access 1 | . . . . . . . 1 . Unauthorized Hacks 19 | . 7 . 5 . . . 7 . Terminals 16 | . 6 . 3 . . . 7 . Botnet 3 | . 1 . 1 . . . 1 . Operators 1 | . 1 . . . . . . . Skim 12 | . 4 . 2 . . . 6 . Fabricators . | . . . . . . . . . Repair Stations . | . . . . . . . . . Recycling Units 3 | . 1 . 2 . . . . . Tunnel 3 | . 1 . 2 . . . . . Scanalyzers . | . . . . . . . . . Garrison Access . | . . . . . . . . . Data Cores Recovered 1 | . . . 1 . . . . . Used 1 | . . . 1 . . . . . Hacking Detections 16 | . 5 . 3 . . . 6 2 Full Trace Events 2 | . 1 . . . . . . 1 Feedback Events . | . . . . . . . . . Feedback Blocked . | . . . . . . . . . Robot Schematics Acquired . | . . . . . . . . . Robots Built . | . . . . . . . . . Authchips . | . . . . . . . . . Time . | . . . . . . . . . Total Robot Build Rating . | . . . . . . . . . Part Schematics Acquired 2 | . . . . . . . 2 . Parts Built . | . . . . . . . . . Authchips . | . . . . . . . . . Time . | . . . . . . . . . Total Part Build Rating . | . . . . . . . . . Part Studies Acquired 3 | . . . . . . . 3 . Parts Repaired 5 | . 1 . 4 . . . . . Time 154 | . 26 . 128 . . . . . Parts Recycled . | . . . . . . . . . Recycled Matter . | . . . . . . . . . Retrieved Matter . | . . . . . . . . . Retrieved Components . | . . . . . . . . . Parts Scanalyzed 2 | . . . . . . . 2 . Part Schematics Acquired 2 | . . . . . . . 2 . Parts Damaged . | . . . . . . . . . Bothacking | -11 -10 -10 -9 -9 -9 -8 -8 -8 ------------ Run | Yrd Mat Min Mat Min Exi Min Mat Gar Used RIF Installer . | . . . . . . . . . Robots Hacked . | . . . . . . . . . Non-combat . | . . . . . . . . . Combat . | . . . . . . . . . Robot Hacks Applied . | . . . . . . . . . Relay Couplers Released 19 | . . . . . . . . 19 Machine Destruction 19 | . . . . . . . . 19 Fabnet Peak Effective % . | . . . . . . . . . Robots Rewired . | . . . . . . . . . Allies Hacked . | . . . . . . . . . Hacks Repelled . | . . . . . . . . . Allies | -11 -10 -10 -9 -9 -9 -8 -8 -8 -------- Run | Yrd Mat Min Mat Min Exi Min Mat Gar Total Allies 3 | . . 3 . . . . . . Largest Group 3 | . . 3 3 . . . . . Highest-Rated Group 40 | . . 40 40 . . . . . Highest-Rated Ally 16 | . . 16 16 . . . . . Total Orders . | . . . . . . . . . Ally Attacks 8 | . . 4 4 . . . . . Total Damage 109 | . . 62 47 . . . . . Kills 2 | . . 2 . . . . . . Allies Corrupted . | . . . . . . . . . Allies Melted . | . . . . . . . . . Intel | -11 -10 -10 -9 -9 -9 -8 -8 -8 ------- Run | Yrd Mat Min Mat Min Exi Min Mat Gar Active Infowar (turns) 2587 | 7 2034 333 213 . . . . . Seismic 2587 | 7 2034 333 213 . . . . . Robot Analysis Total . | . . . . . . . . . Derelict Logs Recovered . | . . . . . . . . . Drone Launches . | . . . . . . . . . Drone Recoveries . | . . . . . . . . . Exploration | -11 -10 -10 -9 -9 -9 -8 -8 -8 ------------- Run | Yrd Mat Min Mat Min Exi Min Mat Gar Turns Passed 10142 | 85 2034 333 1466 552 340 402 3013 1917 Spaces Moved 4071 | 63 872 85 636 343 212 212 895 753 Core 19 | 19 . . . . . . . . Treads 3051 | . . . 636 343 212 212 895 753 Legs 1001 | 44 872 85 . . . . . . Wheels . | . . . . . . . . . Hover . | . . . . . . . . . Flight . | . . . . . . . . . Fastest Speed 50 | 50 120 260 160 160 160 160 160 160 Average Speed 187 | 98 187 260 160 160 160 160 239 175 Slowest Speed 260 | 120 260 260 160 160 160 160 240 240 Overloaded Moves . | . . . . . . . . . Propulsion Burnouts . | . . . . . . . . . Robots Hopped . | . . . . . . . . . Potential Cave-ins . | . . . . . . . . . Cave-ins Triggered . | . . . . . . . . . Exploration Rate (%) 53 | 4 91 27 46 42 61 53 66 87 Regions Visited 8 Branch Regions 4 Pre-discovered Areas 6 | . 1 . 2 . . . 3 . Known Exits Taken 1 | . . . . . . . 1 . Unknown Exits Taken 7 | 1 1 1 1 1 1 1 . . Scrap Searched 3 | . . . . 1 . 2 . . Spaces Dug 6 | . . . . . . . . 6 Terrain Destroyed 195 | . 23 . 43 . . . 14 115 Melee . | . . . . . . . . . Projectile . | . . . . . . . . . AOE 195 | . 23 . 43 . . . 14 115 Terrain Rammed 21 | . . . . . . . . 21 Walls Destroyed . | . . . . . . . . . Machines Disabled . | . . . . . . . . . Actions | -11 -10 -10 -9 -9 -9 -8 -8 -8 --------- Run | Yrd Mat Min Mat Min Exi Min Mat Gar Total 5915 | 79 1137 189 946 345 213 260 1664 1082 Wait 1345 | . 151 97 199 . . 34 673 191 Move 4063 | 62 871 84 635 342 211 211 895 752 Hop . | . . . . . . . . . Pick Up 56 | 4 21 2 9 . 1 1 12 6 Fast Attach 29 | 6 1 . 11 . . 1 8 2 Attach 19 | . 3 . 6 . . . 2 8 Detach . | . . . . . . . . . Swap 26 | 1 7 . 5 1 . 2 8 2 Drop 49 | . 9 1 14 . 1 2 20 2 Fire 259 | 1 72 3 63 . . 6 43 71 Melee . | . . . . . . . . . Ram 20 | . . . . . . . . 20 Kick 9 | 5 2 2 . . . . . . Crush 34 | . . . 4 1 . 3 3 23 Escape Stasis 4 | . . . . . . . . 4 Rewire 2 | . . . . 1 . . . 1 Trap . | . . . . . . . . . Miscellaneous . | . . . . . . . . . Route ------- -11/Scrapyard -10/Materials (discovered 5 exits: *Mat x3 / [*Min x2]) -10/Mines -9/Materials (discovered 2 exits: *Mat / [*Min]) -9/Mines (discovered 3 exits: *Mat / *Exi / [*Zio]) -9/Exiles -8/Mines (discovered 2 exits: *Mat x2) -8/Materials (discovered 3 exits: [*Fac x2] / Gar) -8/Garrison (discovered 3 exits: [*Mat x3]) History --------- Turn | Location | Event 15 | -11/Scrapyard | Discovered new exit (range 15) 86 | -11/Scrapyard | Entered Materials 260 | -10/Materials | Discovered new exit (range 16) 302 | -10/Materials | Build established: Mutant 512 | -10/Materials | Discovered new exit (range 5) 578 | -10/Materials | Discovered new exit (range 12) 754 | -10/Materials | Discovered new exit (range 15) 1122 | -10/Materials | Discovered new exit (range 7) 1234 | -10/Materials | Repaired Assault Rifle 2120 | -10/Materials | Entered Mines 2121 | -10/Mines | Assembled infested the area 2126 | -10/Mines | Assisted by a Guerilla fighting off Assembled 2163 | -10/Mines | Met a Derelict bent on vengeance 2354 | -10/Mines | Assisted by bots powering up and referring to "LRC-V3" 2413 | -10/Mines | Discovered new exit (range 11) 2453 | -10/Mines | Entered Materials 2453 | -9/Materials | Accompanied by 3 allies 2453 | -9/Materials | Evolved 2 slots: Propulsion x1, Weapon x1 2690 | -9/Materials | Lost 3 allies 2755 | -9/Materials | Build established: Gunner 2758 | -9/Materials | Discovered new exit (range 10) 3336 | -9/Materials | Build established: Scavenger-Gunner 3588 | -9/Materials | Repaired Shotgun 3621 | -9/Materials | Repaired Shotgun 3661 | -9/Materials | Repaired Imp. Heat Sink 3688 | -9/Materials | Repaired Lgt. Treads 3866 | -9/Materials | Discovered new exit (range 16) 3918 | -9/Materials | Build established: Gunner 3919 | -9/Materials | Entered Mines 3946 | -9/Mines | A Derelict revealed a hidden shortcut to a safe place 3958 | -9/Mines | Discovered new exit (range 4) 4035 | -9/Mines | Deemed a non-threat by the Exiles lab entrance 4035 | -9/Mines | Discovered new exit (range 5) 4471 | -9/Mines | Entered Exiles 4511 | -9/Exiles | Met 8R-AWN 4539 | -9/Exiles | Met EX-HEX 4585 | -9/Exiles | Met EX-BIN 4604 | -9/Exiles | Aligned with FarCom system 4606 | -9/Exiles | Given EX-Vault access code 4643 | -9/Exiles | Opened EX-Vault 4654 | -9/Exiles | Found 0b10 Alert Chip 4684 | -9/Exiles | Warned to stay clear of 0b10 Research branches 4735 | -9/Exiles | Met EX-DEC 4795 | -9/Exiles | Discovered new exit (range 10) 4811 | -9/Exiles | Left Exiles lab with 0b10 Alert Chip 4811 | -9/Exiles | Entered Mines 4959 | -8/Mines | Discovered new exit (range 4) 5112 | -8/Mines | Build established: Skirmisher 5199 | -8/Mines | Discovered new exit (range 10) 5213 | -8/Mines | Entered Materials 5213 | -8/Materials | Evolved 2 slots: Utility x1, Weapon x1 6054 | -8/Materials | Discovered new exit (range 4) 6444 | -8/Materials | Discovered new exit (range 16) 7637 | -8/Materials | Garrison activated, responded to threat 7879 | -8/Materials | Central database locked down 8023 | -8/Materials | Learned location of Zion (-7) 8050 | -8/Materials | Learned 8 Factory zone layouts 8067 | -8/Materials | Learned Storage emergency access door positions 8073 | -8/Materials | Learned Storage security intel 8078 | -8/Materials | Learned location of 1 exit from Recycling 8119 | -8/Materials | Learned Factory security intel 8226 | -8/Materials | Identified exit to Garrison 8226 | -8/Materials | Entered Garrison 8306 | -8/Garrison | Triggered checkpoint 8383 | -8/Garrison | Garrison Relay disabled 8687 | -8/Garrison | Lost 6 parts (1p3n1u1w) 8808 | -8/Garrison | Triggered checkpoint 8846 | -8/Garrison | Discovered new exit (range 11) 8903 | -8/Garrison | Garrison Relay disabled 9018 | -8/Garrison | Discovered new exit (range 9) 9050 | -8/Garrison | Garrison Relay disabled 9252 | -8/Garrison | Discovered new exit (range 10) 9312 | -8/Garrison | Garrison Relay disabled 9350 | -8/Garrison | Attempted to access garrison exit controls, blocked by remote lockdown 9522 | -8/Garrison | Phase Generator disabled 9540 | -8/Garrison | Garrison Relay disabled 9613 | -8/Garrison | Core integrity fell below 50% 9925 | -8/Garrison | System corruption reached 10% 9985 | -8/Garrison | Lost 4 parts (1n1u2w) 10062 | -8/Garrison | Core integrity fell below 20% 10143 | -8/Garrison | Core destroyed Last Messages --------------- 10076_ Slammed into RIF Installer. 10085_ System corrupted: IFF burst signal emitted. 10091_ Slammed into RIF Installer. 10091_ Destabilizing: Core damaged (-22). 10091_ Destabilizing: System corrupted (+2). 10098_ Slammed into RIF Installer. 10098_ Destabilizing: Core damaged (-16). 10106_ System corrupted: Substantial component data lost. 10106_ Slammed into RIF Installer. 10113_ Destabilizing: Core damaged (-5). 10121_ System corrupted: Energy discharge (-26). 10121_ Slammed into RIF Installer. 10121_ Destabilizing: Core damaged (-5). 10128_ Slammed into RIF Installer. 10128_ Destabilizing: System corrupted (+2). 10128_ Destabilizing: Core damaged (-16). 10136_ Slammed into RIF Installer. 10143_ Destabilizing: Core damaged (-22). Map ----- +----------------------------------------------------+ | # ###?##??#! ???# # #???????????????????????? | | # ##? # ! !????# ! #???????????????????????? | | ## #+#?#???# ! #???????????????????????? | | #??# ! #???????????????????????? | | # ##+??#???# # #???????????????????????? | | # ##?# ??#???????# #???????????????????????? | | # ###?# #??????????# ###?????????????????????? | | # #???# #??????????# #?????????????????????? | | # #???# #??????????# #?????????????????????? | | #^ #???# #????####??# #?????????????????????? | | #^^#???# #????# ??? ###?????????????????????? | | # ##### #????# #???# #???????????????????????? | | # ##T## ###### #???# #???????????????????????? | | # [] #???# #???????????????????????? | | # ##### #???????????????????????? | | ############## * #???????????????????????? | | ?????????????# ##### #???????????????????????? | | ?????????????# #???# #???????????????????????? | | ?????????????# #??## #########???????????????? | | ?????????????# #??# """#???????????????? | | ?????????????# #??# "#???????????????? | | ?????????????# ??#" "##???????????????? | | ?????????????#